fUSD/lending_fUSD_20250204
["ID","MTS","AMOUNT","RATE_DAILY","PERIOD"]
[351620244,1738667447224,-500.0,9.035e-05,2]
[351620245,1738667447235,-710.7,9.035e-05,2]
[351620246,1738667447245,-1002.01,9.035e-05,2]
[351620247,1738667447255,-500.0,9.035e-05,2]
[351620248,1738667447265,-500.0,9.035e-05,2]
[351620249,1738667447277,-500.0,9.035e-05,2]
[351620250,1738667447287,-500.0,9.035e-05,2]
[351620251,1738667447296,-500.0,9.035e-05,2]
[351620252,1738667447306,-500.0,9.035e-05,2]
[351620253,1738667447316,-1399.32,9.035e-05,2]
[351620254,1738667447326,-500.0,9.035e-05,2]
[351620255,1738667447336,-500.0,9.035e-05,2]
[351620256,1738667447345,-889.43,9.035e-05,2]
[351620257,1738667447355,-500.0,9.035e-05,2]
[351620258,1738667447364,-1705.36,9.035e-05,2]
[351620259,1738667447374,-500.0,9.035e-05,2]
[351620260,1738667447384,-500.0,9.035e-05,2]
[351620261,1738667447395,-500.0,9.035e-05,2]
[351620262,1738667447404,-500.0,9.035e-05,2]
[351620263,1738667447414,-973.3,9.035e-05,2]
[351620264,1738667447424,-627.32,9.035e-05,2]
[351620265,1738667447434,-500.0,9.035e-05,2]
[351620266,1738667447443,-500.0,9.035e-05,2]
[351620267,1738667447452,-500.0,9.035e-05,2]
[351620268,1738667447464,-1050.31,9.035e-05,2]
[351620269,1738667447474,-500.0,9.035e-05,2]
[351620270,1738667447484,-500.0,9.035e-05,2]
[351620271,1738667447494,-500.0,9.035e-05,2]
[351620272,1738667447509,-500.0,9.035e-05,2]
[351620273,1738667447525,-462.60920773,9.035e-05,2]
[351620274,1738667447554,-390.57079227,9.035e-05,2]
[351620275,1738667447567,-508.75,9.035e-05,2]
[351620276,1738667447577,-185.47020816,9.035e-05,2]
[351620277,1738667449105,-500.0,8.897e-05,2]
[351620278,1738667449117,-1088.9,9.034e-05,2]
[351620279,1738667449128,-500.0,9.034e-05,2]
[351620280,1738667449139,-314.52979184,9.035e-05,2]
[351620281,1738667449151,-613.76894877,9.035e-05,2]
[351620282,1738667449162,-794.56,9.035e-05,2]
[351620283,1738667449173,-500.0,9.035e-05,2]
[351620284,1738667449184,-501.04,9.035e-05,2]
[351620285,1738667449195,-500.0,9.035e-05,2]
[351620286,1738667449206,-500.0,9.035e-05,2]
[351620287,1738667449218,-1140.49,9.035e-05,2]
[351620288,1738667449230,-989.2,9.035e-05,2]
[351620289,1738667449241,-500.0,9.035e-05,2]
[351620290,1738667449252,-500.0,9.035e-05,2]
[351620291,1738667449263,-500.0,9.035e-05,2]
[351620292,1738667449275,-500.0,9.035e-05,2]
[351620293,1738667449285,-500.0,9.035e-05,2]
[351620294,1738667449297,-1075.23,9.035e-05,2]
[351620295,1738667449308,-500.0,9.035e-05,2]
[351620296,1738667449320,-500.0,9.035e-05,2]
[351620297,1738667449330,-774.53,9.035e-05,2]
[351620298,1738667449341,-500.0,9.035e-05,2]
[351620299,1738667449352,-1624.68,9.035e-05,2]
[351620300,1738667449364,-648.91,9.035e-05,2]
[351620301,1738667449375,-1182.58,9.035e-05,2]
[351620302,1738667449386,-500.0,9.035e-05,2]
[351620303,1738667449398,-500.0,9.035e-05,2]
[351620304,1738667449410,-500.0,9.035e-05,2]
[351620305,1738667449422,-658.47,9.035e-05,2]
[351620306,1738667449434,-1295.83,9.035e-05,2]
[351620307,1738667449445,-553.29,9.035e-05,2]
[351620308,1738667449457,-500.0,9.035e-05,2]
[351620309,1738667449470,-500.0,9.035e-05,2]
[351620310,1738667449482,-1241.19,9.035e-05,2]
[351620311,1738667449499,-500.0,9.035e-05,2]
[351620312,1738667449511,-500.0,9.035e-05,2]
[351620313,1738667449525,-1520.74,9.035e-05,2]
[351620314,1738667449538,-960.33,9.035e-05,2]
[351620315,1738667449550,-500.0,9.035e-05,2]
[351620316,1738667449562,-707.2,9.035e-05,2]
[351620317,1738667449573,-1221.09,9.035e-05,2]
[351620318,1738667449585,-509.95127048,9.035e-05,2]
[351620319,1738667449597,-500.0,9.035e-05,2]
[351620320,1738667449609,-623.53,9.035e-05,2]
[351620321,1738667449620,-679.07,9.035e-05,2]
[351620322,1738667449631,-1350.28,9.035e-05,2]
[351620323,1738667449641,-500.0,9.035e-05,2]
[351620324,1738667449653,-500.0,9.035e-05,2]
[351620325,1738667449667,-500.0,9.035e-05,2]
[351620326,1738667449683,-562.23,9.035e-05,2]
[351620327,1738667449697,-500.0,9.035e-05,2]
[351620328,1738667449713,-1580.8,9.035e-05,2]
[351620329,1738667449724,-508.98,9.035e-05,2]
[351620330,1738667449737,-1058.05,9.035e-05,2]
[351620331,1738667449748,-500.0,9.035e-05,2]
[351620332,1738667449760,-1211.28,9.035e-05,2]
[351620333,1738667449772,-738.97,9.035e-05,2]
[351620334,1738667449783,-500.0,9.035e-05,2]
[351620335,1738667449795,-508.24,9.035e-05,2]
[351620336,1738667449806,-500.0,9.035e-05,2]
[351620337,1738667449817,-1081.83,9.035e-05,2]
[351620338,1738667449829,-500.0,9.035e-05,2]
[351620339,1738667449840,-500.0,9.035e-05,2]
[351620340,1738667449851,-500.0,9.035e-05,2]
[351620341,1738667449863,-1480.79976959,9.035e-05,2]
[351620342,1738667449912,-362.93023041,9.035e-05,2]
[351620343,1738667449924,-228.73431897,9.035e-05,2]
[351620344,1738667449960,-271.26568103,9.035e-05,2]
[351620345,1738667449971,-500.0,9.035e-05,2]
[351620346,1738667449982,-1248.36589689,9.171e-05,3]
[351620347,1738667449994,-593.13,9.171e-05,2]
[351620348,1738667450007,-500.0,9.171e-05,2]
[351620349,1738667450018,-500.0,9.171e-05,2]
[351620350,1738667450029,-500.0,9.171e-05,2]
[351620351,1738667450040,-500.0,9.171e-05,2]
[351620352,1738667450050,-500.0,9.171e-05,2]
[351620353,1738667450061,-500.0,9.171e-05,2]
[351620354,1738667450072,-500.0,9.171e-05,2]
[351620355,1738667450097,-500.0,9.171e-05,2]
[351620356,1738667450120,-546.1,9.171e-05,2]
[351620357,1738667450132,-500.0,9.171e-05,2]
[351620358,1738667450145,-500.0,9.171e-05,2]
[351620359,1738667450157,-500.0,9.171e-05,2]
[351620360,1738667450168,-527.43,9.171e-05,2]
[351620361,1738667450178,-500.0,9.171e-05,2]
[351620362,1738667450188,-646.54,9.171e-05,2]
[351620363,1738667450199,-500.0,9.171e-05,2]
[351620364,1738667450210,-500.0,9.171e-05,2]
[351620365,1738667450221,-500.0,9.171e-05,2]
[351620366,1738667450233,-546.74,9.171e-05,2]
[351620367,1738667450243,-500.0,9.171e-05,2]
[351620368,1738667450254,-1016.87,9.171e-05,2]
[351620369,1738667450264,-560.89,9.171e-05,2]
[351620370,1738667450274,-887.96,9.171e-05,2]
[351620371,1738667450285,-806.65,9.171e-05,2]
[351620372,1738667450295,-916.85,9.171e-05,2]
[351620373,1738667450306,-656.328528,9.171e-05,2]
[351620374,1738667450316,-500.0,9.171e-05,2]
[351620375,1738667450327,-674.34,9.171e-05,2]
[351620376,1738667450337,-500.0,9.171e-05,2]
[351620377,1738667450348,-830.84,9.171e-05,2]
[351620378,1738667450358,-500.0,9.171e-05,2]
[351620379,1738667450368,-735.59,9.171e-05,2]
[351620380,1738667450379,-500.0,9.171e-05,2]
[351620381,1738667450388,-1020.31,9.171e-05,2]
[351620382,1738667450399,-678.3,9.171e-05,2]
[351620383,1738667450409,-500.0,9.171e-05,2]
[351620384,1738667450419,-670.662005,9.171e-05,2]
[351620385,1738667450430,-761.16,9.171e-05,2]
[351620386,1738667450440,-1191.92,9.171e-05,2]
[351620387,1738667450451,-842.81,9.171e-05,2]
[351620388,1738667450463,-501.19,9.171e-05,2]
[351620389,1738667450474,-1436.96,9.171e-05,2]
[351620390,1738667450485,-1098.86,9.171e-05,2]
[351620391,1738667450496,-1587.17,9.171e-05,2]
[351620392,1738667450506,-555.35,9.171e-05,2]
[351620393,1738667450522,-3586.6,9.171e-05,2]
[351620394,1738667450533,-826.45,9.171e-05,2]
[351620395,1738667450544,-874.52,9.171e-05,2]
[351620396,1738667450556,-735.1,9.171e-05,2]
[351620397,1738667450566,-500.0,9.171e-05,2]
[351620398,1738667450577,-1079.23,9.171e-05,2]
[351620399,1738667450588,-1133.01,9.171e-05,2]
[351620400,1738667450598,-1605.3,9.171e-05,2]
[351620401,1738667450609,-566.45,9.171e-05,2]
[351620402,1738667450620,-1195.29,9.171e-05,2]
[351620403,1738667450631,-528.44,9.171e-05,2]
[351620404,1738667450643,-1670.85,9.171e-05,2]
[351620405,1738667450654,-1128.85,9.171e-05,2]
[351620406,1738667450667,-2377.98,9.171e-05,2]
[351620407,1738667450678,-500.0,9.171e-05,2]
[351620408,1738667450689,-742.14,9.171e-05,2]
[351620409,1738667450700,-704.68,9.171e-05,2]
[351620410,1738667450713,-469.47532711,9.171e-05,2]
[351620411,1738667450725,-1562.25,9.171e-05,2]
[351620412,1738667450735,-996.25,9.171e-05,2]
[351620413,1738667450745,-752.83,9.171e-05,2]
[351620414,1738667450755,-747.44,9.171e-05,2]
[351620415,1738667450765,-1009.27,9.171e-05,2]
[351620416,1738667450775,-950.45,9.171e-05,2]
[351620417,1738667450785,-1760.82,9.171e-05,2]
[351620418,1738667450794,-579.06,9.171e-05,2]
[351620419,1738667450804,-1336.98,9.171e-05,2]
[351620420,1738667450813,-1190.29,9.171e-05,2]
[351620421,1738667450823,-1037.35,9.171e-05,2]
[351620422,1738667450832,-500.0,9.171e-05,2]
[351620423,1738667450841,-975.36,9.171e-05,2]
[351620424,1738667450851,-1052.38,9.171e-05,2]
[351620425,1738667450860,-500.0,9.171e-05,2]
[351620426,1738667450870,-1172.6,9.171e-05,2]
[351620427,1738667450879,-500.0,9.171e-05,2]
[351620428,1738667450888,-553.74,9.171e-05,2]
[351620429,1738667450898,-893.18,9.171e-05,2]
[351620430,1738667450907,-619.3,9.171e-05,2]
[351620431,1738667450917,-793.87,9.171e-05,2]
[351620432,1738667450926,-900.81,9.171e-05,2]
[351620433,1738667450935,-567.81,9.171e-05,2]
[351620434,1738667450945,-500.0,9.171e-05,2]
[351620435,1738667450956,-608.06,9.171e-05,2]
[351620436,1738667450970,-542.59,9.171e-05,2]
[351620437,1738667450980,-1088.9,9.171e-05,2]
[351620438,1738667450990,-500.0,9.171e-05,2]
[351620439,1738667451001,-350.12413607,9.172e-05,2]
[351620440,1738667451012,-336.66847522,9.172e-05,2]
[351620441,1738667451022,-500.0,9.172e-05,2]
[351620442,1738667451032,-500.0,9.172e-05,2]
[351620443,1738667451042,-500.0,9.172e-05,2]
[351620444,1738667451052,-649.36,9.172e-05,2]
[351620445,1738667451062,-500.0,9.172e-05,2]
[351620446,1738667451072,-500.0,9.172e-05,2]
[351620447,1738667451081,-500.0,9.172e-05,2]
[351620448,1738667451091,-500.0,9.172e-05,2]
[351620449,1738667451101,-500.0,9.172e-05,2]
[351620450,1738667451110,-500.0,9.172e-05,2]
[351620451,1738667451120,-664.96,9.172e-05,2]
[351620452,1738667451130,-500.0,9.172e-05,2]
[351620453,1738667451139,-500.0,9.172e-05,2]
[351620454,1738667451148,-500.0,9.172e-05,2]
[351620455,1738667451157,-500.0,9.172e-05,2]
[351620456,1738667451167,-500.0,9.172e-05,2]
[351620457,1738667451177,-500.0,9.172e-05,2]
[351620458,1738667451186,-500.0,9.172e-05,2]
[351620459,1738667451196,-500.0,9.172e-05,2]
[351620460,1738667451205,-500.0,9.172e-05,2]
[351620461,1738667451700,-595.16,9.172e-05,2]
[351620462,1738667451722,-568.57,9.172e-05,2]
[351620463,1738667451745,-500.0,9.172e-05,2]
[351620464,1738667451763,-500.0,9.172e-05,2]
[351620465,1738667451775,-500.0,9.172e-05,2]
[351620466,1738667451784,-789.04,9.172e-05,2]
[351620467,1738667451794,-500.0,9.172e-05,2]
[351620468,1738667451803,-500.0,9.172e-05,2]
[351620469,1738667451812,-500.0,9.172e-05,2]
[351620470,1738667451821,-500.0,9.172e-05,2]
[351620471,1738667451831,-500.0,9.172e-05,2]
[351620472,1738667451840,-500.0,9.172e-05,2]
[351620473,1738667451849,-500.0,9.172e-05,2]
[351620474,1738667451859,-500.0,9.172e-05,2]
[351620475,1738667451868,-500.0,9.172e-05,2]
[351620476,1738667451878,-500.0,9.172e-05,2]
[351620477,1738667451887,-544.55,9.172e-05,2]
[351620478,1738667451896,-504.41,9.172e-05,2]
[351620479,1738667451905,-502.21,9.172e-05,2]
[351620480,1738667451915,-706.43,9.172e-05,2]
[351620481,1738667451925,-500.0,9.172e-05,2]
[351620482,1738667451935,-179.89584821,9.172e-05,2]
[351620483,1738667451944,-500.0,9.172e-05,2]
[351620484,1738667451954,-500.0,9.172e-05,2]
[351620485,1738667451967,-500.0,9.172e-05,2]
[351620486,1738667451977,-500.0,9.172e-05,2]
[351620487,1738667451987,-574.13,9.172e-05,2]
[351620488,1738667451997,-500.0,9.172e-05,2]
[351620489,1738667452007,-562.82,9.172e-05,2]
[351620490,1738667452016,-581.83,9.172e-05,2]
[351620491,1738667452026,-500.0,9.172e-05,2]
[351620492,1738667452036,-520.24,9.172e-05,2]
[351620493,1738667452046,-500.0,9.172e-05,2]
[351620494,1738667452055,-500.0,9.172e-05,2]
[351620495,1738667452064,-500.0,9.172e-05,2]
[351620496,1738667452074,-587.74,9.172e-05,2]
[351620497,1738667452083,-500.0,9.172e-05,2]
[351620498,1738667452093,-500.0,9.172e-05,2]
[351620499,1738667452102,-604.38,9.172e-05,2]
[351620500,1738667452111,-500.0,9.172e-05,2]
[351620501,1738667452120,-500.0,9.172e-05,2]
[351620502,1738667452130,-500.0,9.172e-05,2]
[351620503,1738667452139,-500.0,9.172e-05,2]
[351620504,1738667452148,-500.0,9.172e-05,2]
[351620505,1738667452157,-500.0,9.172e-05,2]
[351620506,1738667452166,-500.0,9.172e-05,2]
[351620507,1738667452176,-500.0,9.172e-05,2]
[351620508,1738667452187,-500.0,9.172e-05,2]
[351620509,1738667452197,-500.0,9.172e-05,2]
[351620510,1738667452207,-500.0,9.172e-05,2]
[351620511,1738667452224,-517.16,9.172e-05,2]
[351620512,1738667452235,-500.0,9.172e-05,2]
[351620513,1738667452244,-500.0,9.172e-05,2]
[351620514,1738667452255,-500.0,9.172e-05,2]
[351620515,1738667452264,-500.0,9.172e-05,2]
[351620516,1738667452275,-500.0,9.172e-05,2]
[351620517,1738667452284,-500.0,9.172e-05,2]
[351620518,1738667452294,-500.0,9.172e-05,2]
[351620519,1738667452304,-500.0,9.172e-05,2]
[351620520,1738667452314,-500.0,9.172e-05,2]
[351620521,1738667452324,-546.35,9.172e-05,2]
[351620522,1738667452334,-500.0,9.172e-05,2]
[351620523,1738667452344,-595.56,9.172e-05,2]
[351620524,1738667452354,-837.13,9.172e-05,2]
[351620525,1738667452363,-500.0,9.172e-05,2]
[351620526,1738667452373,-500.0,9.172e-05,2]
[351620527,1738667452383,-500.0,9.172e-05,2]
[351620528,1738667452392,-500.0,9.172e-05,2]
[351620529,1738667452407,-500.0,9.172e-05,2]
[351620530,1738667452417,-500.0,9.172e-05,2]
[351620531,1738667452427,-500.0,9.172e-05,2]
[351620532,1738667452437,-500.0,9.172e-05,2]
[351620533,1738667452446,-500.0,9.172e-05,2]
[351620534,1738667452456,-500.0,9.172e-05,2]
[351620535,1738667452471,-500.0,9.172e-05,2]
[351620536,1738667452481,-500.0,9.172e-05,2]
[351620537,1738667452491,-500.0,9.172e-05,2]
[351620538,1738667452501,-744.25,9.172e-05,2]
[351620539,1738667452513,-242.05229862,9.172e-05,2]
[351620540,1738667452544,-257.94770138,9.172e-05,2]
[351620541,1738667452554,-500.0,9.172e-05,2]
[351620542,1738667452564,-279.99157184,9.172e-05,2]
[351620543,1738667452574,-215.68991301,9.172e-05,2]
[351620544,1738667452583,-500.0,9.172e-05,2]
[351620545,1738667452593,-500.0,9.172e-05,2]
[351620546,1738667452603,-500.0,9.172e-05,2]
[351620547,1738667452612,-500.0,9.172e-05,2]
[351620548,1738667452622,-500.0,9.172e-05,2]
[351620549,1738667452632,-500.0,9.172e-05,2]
[351620550,1738667452641,-500.0,9.172e-05,2]
[351620551,1738667452650,-500.0,9.172e-05,2]
[351620552,1738667452660,-271.0050544,9.172e-05,2]
[351620553,1738667452672,-228.9949456,9.172e-05,2]
[351620554,1738667452681,-500.0,9.172e-05,2]
[351620555,1738667452691,-500.0,9.172e-05,2]
[351620556,1738667452701,-500.0,9.172e-05,2]
[351620557,1738667452714,-518.9,9.172e-05,2]
[351620558,1738667452724,-607.74,9.172e-05,2]
[351620559,1738667452733,-610.12,9.172e-05,2]
[351620560,1738667452743,-500.0,9.172e-05,2]
[351620561,1738667452752,-500.0,9.172e-05,2]
[351620562,1738667452761,-500.0,9.172e-05,2]
[351620563,1738667452771,-559.08,9.172e-05,2]
[351620564,1738667452780,-500.0,9.172e-05,2]
[351620565,1738667452789,-326.73066205,9.172e-05,2]
[351620566,1738667452801,-173.26933795,9.172e-05,2]
[351620567,1738667452810,-500.0,9.172e-05,2]
[351620568,1738667452819,-277.60249707,9.172e-05,2]
[351620569,1738667452828,-500.0,9.172e-05,2]
[351620570,1738667452837,-500.0,9.172e-05,2]
[351620571,1738667452846,-500.0,9.172e-05,2]
[351620572,1738667452855,-500.0,9.172e-05,2]
[351620573,1738667452864,-500.0,9.172e-05,2]
[351620574,1738667452873,-628.3,9.172e-05,2]
[351620575,1738667452883,-500.0,9.172e-05,2]
[351620576,1738667452892,-500.0,9.172e-05,2]
[351620577,1738667452901,-500.0,9.172e-05,2]
[351620578,1738667452910,-500.0,9.172e-05,2]
[351620579,1738667452920,-500.0,9.172e-05,2]
[351620580,1738667452930,-500.0,9.172e-05,2]
[351620581,1738667452940,-500.0,9.172e-05,2]
[351620582,1738667452950,-275.2,9.172e-05,2]
[351620583,1738667452963,-171.43,9.172e-05,2]
[351620584,1738667452973,-500.0,9.172e-05,2]
[351620585,1738667452983,-500.0,9.172e-05,2]
[351620586,1738667452992,-676.5,9.172e-05,2]
[351620587,1738667453001,-500.0,9.172e-05,2]
[351620588,1738667453011,-500.0,9.172e-05,2]
[351620589,1738667453020,-650.5,9.172e-05,2]
[351620590,1738667453030,-500.0,9.172e-05,2]
[351620591,1738667453040,-500.0,9.172e-05,2]
[351620592,1738667453050,-500.0,9.172e-05,2]
[351620593,1738667453059,-500.0,9.172e-05,2]
[351620594,1738667453068,-254.48792059,9.172e-05,2]
[351620595,1738667453078,-500.0,9.172e-05,2]
[351620596,1738667453087,-1034.12,9.172e-05,2]
[351620597,1738667453096,-500.0,9.172e-05,2]
[351620598,1738667453105,-500.0,9.172e-05,2]
[351620599,1738667453114,-500.0,9.172e-05,2]
[351620600,1738667453123,-500.0,9.172e-05,2]
[351620601,1738667453133,-500.0,9.172e-05,2]
[351620602,1738667453143,-500.0,9.172e-05,2]
[351620603,1738667453152,-500.0,9.172e-05,2]
[351620604,1738667453161,-500.0,9.172e-05,2]
[351620605,1738667453171,-629.6,9.172e-05,2]
[351620606,1738667453180,-500.0,9.172e-05,2]
[351620607,1738667453190,-591.63,9.172e-05,2]
[351620608,1738667453200,-500.0,9.172e-05,2]
[351620609,1738667453214,-500.0,9.172e-05,2]
[351620610,1738667453224,-426.32601001,9.172e-05,2]
[351620611,1738667453234,-500.0,9.172e-05,2]
[351620612,1738667453244,-514.54,9.172e-05,2]
[351620613,1738667453254,-627.41,9.172e-05,2]
[351620614,1738667453264,-500.0,9.172e-05,2]
[351620615,1738667453274,-500.0,9.172e-05,2]
[351620616,1738667453283,-936.6,9.172e-05,2]
[351620617,1738667453293,-500.0,9.172e-05,2]
[351620618,1738667453302,-657.01,9.172e-05,2]
[351620619,1738667453311,-901.83,9.172e-05,2]
[351620620,1738667453320,-500.0,9.172e-05,2]
[351620621,1738667453330,-1347.54,9.172e-05,2]
[351620622,1738667453340,-500.0,9.172e-05,2]
[351620623,1738667453350,-500.0,9.172e-05,2]
[351620624,1738667453359,-500.0,9.172e-05,2]
[351620625,1738667453369,-821.28,9.172e-05,2]
[351620626,1738667453378,-766.46,9.172e-05,2]
[351620627,1738667453388,-561.74270874,9.172e-05,2]
[351620628,1738667453397,-548.84,9.172e-05,2]
[351620629,1738667453407,-500.0,9.172e-05,2]
[351620630,1738667453416,-1067.5,9.172e-05,2]
[351620631,1738667453425,-567.98,9.172e-05,2]
[351620632,1738667453435,-1206.36,9.172e-05,2]
[351620633,1738667453444,-500.0,9.172e-05,2]
[351620634,1738667453453,-789.24,9.172e-05,2]
[351620635,1738667453466,-719.05,9.172e-05,2]
[351620636,1738667453476,-500.0,9.172e-05,2]
[351620637,1738667453485,-1125.83,9.172e-05,2]
[351620638,1738667453495,-500.0,9.172e-05,2]
[351620639,1738667453504,-500.0,9.172e-05,2]
[351620640,1738667453514,-710.7,9.172e-05,2]
[351620641,1738667453525,-1002.01,9.172e-05,2]
[351620642,1738667453535,-500.0,9.172e-05,2]
[351620643,1738667453545,-500.0,9.172e-05,2]
[351620644,1738667453554,-500.0,9.172e-05,2]
[351620645,1738667453564,-500.0,9.172e-05,2]
[351620646,1738667453575,-500.0,9.172e-05,2]
[351620647,1738667453584,-1399.32,9.172e-05,2]
[351620648,1738667453594,-500.0,9.172e-05,2]
[351620649,1738667453607,-500.0,9.172e-05,2]
[351620650,1738667453617,-889.43,9.172e-05,2]
[351620651,1738667453627,-1705.36,9.172e-05,2]
[351620652,1738667453636,-500.0,9.172e-05,2]
[351620653,1738667453647,-500.0,9.172e-05,2]
[351620654,1738667453656,-500.0,9.172e-05,2]
[351620655,1738667453666,-500.0,9.172e-05,2]
[351620656,1738667453676,-464.53234109,9.172e-05,2]
[351620657,1738667453689,-508.76765891,9.172e-05,2]
[351620658,1738667453699,-5.1494026,9.172e-05,2]
[351620659,1738667453726,-622.1705974,9.172e-05,2]
[351620660,1738667453735,-500.0,9.172e-05,2]
[351620661,1738667453744,-500.0,9.172e-05,2]
[351620662,1738667453754,-500.0,9.172e-05,2]
[351620663,1738667453763,-1050.31,9.172e-05,2]
[351620664,1738667453772,-500.0,9.172e-05,2]
[351620665,1738667453781,-500.0,9.172e-05,2]
[351620666,1738667453790,-853.18,9.172e-05,2]
[351620667,1738667453799,-508.75,9.172e-05,2]
[351620668,1738667453808,-794.56,9.172e-05,2]
[351620669,1738667453817,-501.04,9.172e-05,2]
[351620670,1738667453827,-500.0,9.172e-05,2]
[351620671,1738667453837,-500.0,9.172e-05,2]
[351620672,1738667453849,-1140.49,9.172e-05,2]
[351620673,1738667453859,-989.2,9.172e-05,2]
[351620674,1738667453871,-500.0,9.172e-05,2]
[351620675,1738667453881,-500.0,9.172e-05,2]
[351620676,1738667453894,-500.0,9.172e-05,2]
[351620677,1738667453910,-500.0,9.172e-05,2]
[351620678,1738667453924,-500.0,9.172e-05,2]
[351620679,1738667453935,-1075.23,9.172e-05,2]
[351620680,1738667453945,-500.0,9.172e-05,2]
[351620681,1738667453956,-500.0,9.172e-05,2]
[351620682,1738667453969,-774.53,9.172e-05,2]
[351620683,1738667453978,-1624.68,9.172e-05,2]
[351620684,1738667453990,-648.91,9.172e-05,2]
[351620685,1738667454001,-1182.58,9.172e-05,2]
[351620686,1738667454011,-500.0,9.172e-05,2]
[351620687,1738667454022,-500.0,9.172e-05,2]
[351620688,1738667454033,-1295.83,9.172e-05,2]
[351620689,1738667454046,-553.29,9.172e-05,2]
[351620690,1738667454057,-500.0,9.172e-05,2]
[351620691,1738667454067,-658.47,9.172e-05,2]
[351620692,1738667454079,-500.0,9.172e-05,2]
[351620693,1738667454089,-1241.19,9.172e-05,2]
[351620694,1738667454099,-500.0,9.172e-05,2]
[351620695,1738667454110,-1520.74,9.172e-05,2]
[351620696,1738667454120,-960.33,9.172e-05,2]
[351620697,1738667454130,-500.0,9.172e-05,2]
[351620698,1738667454139,-707.2,9.172e-05,2]
[351620699,1738667454149,-1221.09,9.172e-05,2]
[351620700,1738667454161,-500.0,9.172e-05,2]
[351620701,1738667454171,-679.07,9.172e-05,2]
[351620702,1738667454183,-1350.28,9.172e-05,2]
[351620703,1738667454195,-500.0,9.172e-05,2]
[351620704,1738667454206,-500.0,9.172e-05,2]
[351620705,1738667454217,-500.0,9.172e-05,2]
[351620706,1738667454226,-562.23,9.172e-05,2]
[351620707,1738667454236,-500.0,9.172e-05,2]
[351620708,1738667454246,-1580.8,9.172e-05,2]
[351620709,1738667454256,-508.98,9.172e-05,2]
[351620710,1738667454266,-1058.05,9.172e-05,2]
[351620711,1738667454275,-500.0,9.172e-05,2]
[351620712,1738667454284,-1211.28,9.172e-05,2]
[351620713,1738667454293,-738.97,9.172e-05,2]
[351620714,1738667454303,-500.0,9.172e-05,2]
[351620715,1738667454312,-508.24,9.172e-05,2]
[351620716,1738667454321,-500.0,9.172e-05,2]
[351620717,1738667454331,-1081.83,9.172e-05,2]
[351620718,1738667454340,-500.0,9.172e-05,2]
[351620719,1738667454350,-500.0,9.172e-05,2]
[351620720,1738667454359,-278.71012539,9.172e-05,2]
[351620721,1738667454369,-1843.73,9.172e-05,2]
[351620722,1738667454379,-500.0,9.172e-05,2]
[351620723,1738667454388,-500.0,9.172e-05,2]
[351620724,1738667454398,-164.22,9.247e-05,2]
[351620725,1738667454408,-1000.0,9.247e-05,2]
[351620726,1738667454418,-283.05053989,9.267e-05,2]
[351620727,1738667454428,-593.13,9.308e-05,2]
[351620728,1738667454438,-187.96243021,9.308e-05,2]
[351620729,1738667454451,-312.03756979,9.308e-05,2]
[351620730,1738667454462,-184.69243021,9.308e-05,2]
[351620731,1738667454620,-315.30756979,9.308e-05,2]
[351620732,1738667454631,-500.0,9.308e-05,2]
[351620733,1738667454641,-500.0,9.308e-05,2]
[351620734,1738667454651,-500.0,9.308e-05,2]
[351620735,1738667454662,-500.0,9.308e-05,2]
[351620736,1738667454672,-500.0,9.308e-05,2]
[351620737,1738667454683,-500.0,9.308e-05,2]
[351620738,1738667454693,-546.1,9.308e-05,2]
[351620739,1738667454898,-500.0,9.308e-05,2]
[351620740,1738667454909,-500.0,9.308e-05,2]
[351620741,1738667454919,-500.0,9.308e-05,2]
[351620742,1738667454930,-192.67772588,9.308e-05,2]
[351620743,1738667454942,-334.75227412,9.308e-05,2]